fUSD/lending_fUSD_20260701
["ID","MTS","AMOUNT","RATE_DAILY","PERIOD"]
[426804633,1782841843000,-221.02393256,0.00035314,2]
[426804639,1782841843000,-327.16938857,0.00035322,5]
[426804641,1782841843000,-327.16938857,0.00035322,5]
[426804634,1782841843000,-327.16938857,0.00035322,5]
[426804636,1782841843000,-327.16938857,0.00035322,5]
[426804635,1782841843000,-327.16938857,0.00035322,5]
[426804632,1782841843000,-950.57487904,0.000353,30]
[426804637,1782841843000,-327.16938857,0.00035322,5]
[426804640,1782841843000,-327.16938857,0.00035322,5]
[426804638,1782841843000,-327.16938857,0.00035322,5]
[426804643,1782841843000,-327.16938857,0.00035322,5]
[426804642,1782841843000,-327.16938857,0.00035322,5]
[426804646,1782841843000,-3699.9,0.00035333,30]
[426804644,1782841843000,-327.1693887,0.00035322,5]
[426804647,1782841843000,-1089.35,0.00035333,30]
[426804645,1782841843000,-156.1749121,0.00035331,2]
[426804648,1782841843000,-199.74,0.00035333,30]
[426804592,1782841843000,-2337.0,0.00035179,11]
[426804649,1782841843000,-325.47917,0.0003534,65]
[426804651,1782841843000,-154.78100838,0.00035342,30]
[426804624,1782841843000,-1314.2834,0.00035263,2]
[426804621,1782841843000,-170.0,0.00035263,7]
[426804650,1782841843000,-154.78100838,0.00035342,30]
[426804630,1782841843000,-208.90060572,0.000353,120]
[426804605,1782841843000,-214.90605331,0.00035233,30]
[426804623,1782841843000,-1300.1056,0.00035263,2]
[426804597,1782841843000,-50840.3801202,0.00035209,2]
[426804595,1782841843000,-160.0,0.00035205,11]
[426804596,1782841843000,-200.0,0.00035208,10]
[426804599,1782841843000,-1467.9478362,0.00035209,2]
[426804604,1782841843000,-152.96041084,0.00035233,30]
[426804601,1782841843000,-170.2334922,0.00035209,2]
[426804600,1782841843000,-23927.6477966,0.00035209,2]
[426804602,1782841843000,-214.90605332,0.00035233,30]
[426804603,1782841843000,-168.5827997,0.00035233,30]
[426804606,1782841843000,-161.0,0.00035235,2]
[426804617,1782841843000,-238.9473694,0.00035259,120]
[426804593,1782841843000,-2337.0,0.0003518,11]
[426804608,1782841843000,-325.47917,0.0003524,64]
[426804609,1782841843000,-244.59556489,0.0003525,2]
[426804607,1782841843000,-340.0,0.0003524,46]
[426804613,1782841843000,-157.4610997,0.00035259,120]
[426804610,1782841843000,-534.0370273,0.00035259,120]
[426804616,1782841843000,-150.9105807,0.00035259,120]
[426804612,1782841843000,-217.0712195,0.00035259,120]
[426804614,1782841843000,-153.1564114,0.00035259,120]
[426804611,1782841843000,-274.5201725,0.00035259,120]
[426804615,1782841843000,-225.9391695,0.00035259,120]
[426804619,1782841843000,-232.6,0.00035262,2]
[426804620,1782841843000,-433.23532976,0.00035262,2]
[426804618,1782841843000,-249.0017555,0.00035259,120]
[426804692,1782841844000,-800.0,0.000355,7]
[426804691,1782841844000,-800.0,0.000355,7]
[426804684,1782841844000,-1992679.50250336,0.000355,120]
[426804681,1782841844000,-2000.0,0.00035499,5]
[426804686,1782841844000,-800.0,0.000355,7]
[426804693,1782841844000,-800.0,0.000355,7]
[426804683,1782841844000,-1555.22090464,0.000355,30]
[426804682,1782841844000,-1000.0,0.00035499,120]
[426804688,1782841844000,-800.0,0.000355,7]
[426804685,1782841844000,-800.0,0.000355,7]
[426804689,1782841844000,-193.04,0.000355,30]
[426804696,1782841844000,-161.14,0.000355,30]
[426804690,1782841844000,-161.47,0.000355,7]
[426804695,1782841844000,-800.0,0.000355,7]
[426804694,1782841844000,-800.0,0.000355,7]
[426804697,1782841844000,-208.24,0.000355,7]
[426804698,1782841844000,-3190.39233846,0.000355,2]
[426804701,1782841844000,-300.0,0.000355,10]
[426804700,1782841844000,-300.0,0.000355,10]
[426804703,1782841844000,-325.47917,0.0003554,67]
[426804702,1782841844000,-290.0,0.000355,120]
[426804699,1782841844000,-1173.09821359,0.000355,7]
[426804679,1782841844000,-161.25210894,0.00035499,120]
[426804704,1782841844000,-3000.0,0.0003555,120]
[426804687,1782841844000,-800.0,0.000355,7]
[426804675,1782841844000,-168.5827997,0.00035479,30]
[426804667,1782841844000,-464.8534875,0.00035416,7]
[426804673,1782841844000,-400.0,0.0003547,2]
[426804705,1782841844000,-429.81210664,0.00035562,30]
[426804652,1782841844000,-168.0,0.00035353,2]
[426804655,1782841844000,-2468.0,0.00035393,5]
[426804653,1782841844000,-152.96544708,0.0003537,30]
[426804658,1782841844000,-214.63,0.000354,2]
[426804656,1782841844000,-1972.0,0.00035393,5]
[426804657,1782841844000,-150.0,0.000354,2]
[426804654,1782841844000,-226.0,0.0003538,2]
[426804659,1782841844000,-247.65,0.000354,2]
[426804662,1782841844000,-1483.93556126,0.000354,2]
[426804663,1782841844000,-756.69787109,0.000354,2]
[426804665,1782841844000,-182.50187622,0.000354,2]
[426804661,1782841844000,-200.0,0.000354,14]
[426804660,1782841844000,-200.0,0.000354,10]
[426804664,1782841844000,-1506.569734,0.000354,18]
[426804666,1782841844000,-340.0,0.0003541,60]
[426804668,1782841844000,-158.0,0.0003544,2]
[426804669,1782841844000,-325.47917,0.0003544,66]
[426804671,1782841844000,-400.0,0.0003547,2]
[426804680,1782841844000,-163.89181531,0.00035499,2]
[426804670,1782841844000,-400.0,0.0003547,2]
[426804674,1782841844000,-644.28,0.00035474,2]
[426804677,1782841844000,-1215.54,0.00035493,2]
[426804672,1782841844000,-400.0,0.0003547,2]
[426804678,1782841844000,-151.0,0.00035497,14]
[426804676,1782841844000,-152.96041084,0.00035479,30]
[426804712,1782841844000,-340.0,0.0003557,72]
[426804731,1782841844000,-500.0,0.00035616,7]
[426804711,1782841844000,-2500.0,0.00035569,2]
[426804737,1782841844000,-500.0,0.00035616,7]
[426804738,1782841844000,-500.0,0.00035616,7]
[426804741,1782841844000,-460.60270984,0.00035616,7]
[426804752,1782841844000,-150.0,0.0003562,30]
[426804743,1782841844000,-1221.11335851,0.00035619,2]
[426804742,1782841844000,-500.0,0.00035616,7]
[426804747,1782841844000,-150.0,0.0003562,30]
[426804745,1782841844000,-150.0,0.0003562,30]
[426804746,1782841844000,-150.0,0.0003562,30]
[426804744,1782841844000,-1434.75868823,0.00035619,2]
[426804749,1782841844000,-150.0,0.0003562,30]
[426804739,1782841844000,-500.0,0.00035616,7]
[426804748,1782841844000,-150.0,0.0003562,30]
[426804751,1782841844000,-150.0,0.0003562,30]
[426804754,1782841844000,-150.0,0.0003562,30]
[426804757,1782841844000,-325.47917,0.0003564,69]
[426804756,1782841844000,-504.0,0.00035633,11]
[426804755,1782841844000,-199.65,0.0003562,30]
[426804758,1782841844000,-355.71,0.00035658,3]
[426804759,1782841844000,-181.56,0.0003568,3]
[426804760,1782841844000,-3570.41431521,0.00035685,7]
[426804762,1782841844000,-892.6035788,0.00035685,7]
[426804761,1782841844000,-53728.03572106,0.00035685,7]
[426804709,1782841844000,-2337.0,0.00035565,11]
[426804750,1782841844000,-150.0,0.0003562,30]
[426804734,1782841844000,-500.0,0.00035616,7]
[426804753,1782841844000,-150.0,0.0003562,30]
[426804735,1782841844000,-500.0,0.00035616,7]
[426804706,1782841844000,-154.78100838,0.00035562,30]
[426804736,1782841844000,-500.0,0.00035616,7]
[426804713,1782841844000,-400.0,0.0003557,2]
[426804714,1782841844000,-238.40016915,0.00035589,120]
[426804715,1782841844000,-573.9,0.000356,2]
[426804710,1782841844000,-2337.0,0.00035565,11]
[426804708,1782841844000,-160.0,0.00035565,11]
[426804717,1782841844000,-573.53,0.000356,2]
[426804727,1782841844000,-500.0,0.00035616,7]
[426804716,1782841844000,-151.0,0.000356,2]
[426804728,1782841844000,-500.0,0.00035616,7]
[426804719,1782841844000,-11107.3972787,0.000356,2]
[426804724,1782841844000,-10000.0,0.00035616,120]
[426804707,1782841844000,-154.78100838,0.00035562,30]
[426804721,1782841844000,-907.51,0.00035616,30]
[426804718,1782841844000,-166.25957905,0.000356,7]
[426804723,1782841844000,-10000.0,0.00035616,120]
[426804726,1782841844000,-500.0,0.00035616,7]
[426804725,1782841844000,-5405.0,0.00035616,120]
[426804722,1782841844000,-755.43253107,0.00035616,60]
[426804729,1782841844000,-500.0,0.00035616,7]
[426804730,1782841844000,-500.0,0.00035616,7]
[426804740,1782841844000,-500.0,0.00035616,7]
[426804732,1782841844000,-500.0,0.00035616,7]
[426804733,1782841844000,-500.0,0.00035616,7]
[426804720,1782841844000,-171720.43472746,0.0003561,2]
[426804787,1782841845000,-50000.0,0.00035863,15]
[426804776,1782841845000,-534.14,0.00035754,3]
[426804780,1782841845000,-154.78100838,0.00035781,30]
[426804779,1782841845000,-154.78100838,0.00035781,30]
[426804784,1782841845000,-208.24,0.000358,7]
[426804783,1782841845000,-5000.0,0.000358,14]
[426804781,1782841845000,-812.0,0.0003579,120]
[426804777,1782841845000,-812.0,0.0003577,120]
[426804786,1782841845000,-46625.46,0.00035863,30]
[426804785,1782841845000,-50000.0,0.00035863,30]
[426804772,1782841845000,-1481.36,0.00035738,2]
[426804775,1782841845000,-534.14,0.00035754,3]
[426804770,1782841845000,-152.96041084,0.00035726,30]
[426804771,1782841845000,-340.0,0.0003573,84]
[426804773,1782841845000,-158.59769754,0.00035748,5]
[426804769,1782841845000,-168.5827997,0.00035726,30]
[426804768,1782841845000,-429.81210664,0.00035726,30]
[426804767,1782841845000,-302.40920944,0.000357,10]
[426804766,1782841845000,-180.30760387,0.000357,2]
[426804765,1782841845000,-152.96544708,0.00035699,30]
[426804764,1782841845000,-4692.39285434,0.00035685,7]
[426804763,1782841845000,-13655.15982496,0.00035685,7]
[426804782,1782841845000,-160.0,0.00035799,11]
[426804774,1782841845000,-534.13,0.00035754,3]
[426804799,1782841845000,-404.6,0.000359,120]
[426804778,1782841845000,-812.0,0.0003578,120]
[426804788,1782841845000,-6752.94,0.00035863,15]
[426804813,1782841845000,-300.0,0.00033396,2]
[426804814,1782841845000,-249627.91101194,0.0003598,2]
[426804812,1782841845000,-1101.13386496,0.00033396,2]
[426804811,1782841845000,-84315.96574222,0.0003598,2]
[426804810,1782841845000,-152.0,0.0003598,8]
[426804808,1782841845000,-749.0,0.0003597,120]
[426804802,1782841845000,-20000.0,0.00035906,35]
[426804805,1782841845000,-749.0,0.0003595,120]
[426804809,1782841845000,-151.0,0.00035977,14]
[426804807,1782841845000,-150.0,0.00035968,2]
[426804804,1782841845000,-1067.88150722,0.00035947,2]
[426804815,1782841845000,-3085.18551449,0.00030903,10]
[426804806,1782841845000,-749.0,0.0003596,120]
[426804801,1782841845000,-154.15981973,0.000359,2]
[426804800,1782841845000,-400.0,0.000359,30]
[426804796,1782841845000,-150.0,0.00035899,2]
[426804792,1782841845000,-812.0,0.0003588,120]
[426804795,1782841845000,-812.0,0.0003589,120]
[426804794,1782841845000,-219169.0,0.0003589,30]
[426804793,1782841845000,-167.97014078,0.00035888,120]
[426804797,1782841845000,-1777.538901,0.000359,30]
[426804791,1782841845000,-353591.83969929,0.00035875,60]
[426804798,1782841845000,-340.0,0.000359,93]
[426804790,1782841845000,-233.9,0.00035868,60]
[426804803,1782841845000,-2010.1825,0.00035919,30]
[426804789,1782841845000,-429.81210664,0.00035863,30]
[426804818,1782841846000,-13758.49104232,0.00030903,10]
[426804817,1782841846000,-2907.75006863,0.00030903,10]
[426804839,1782841849000,-790.70620023,0.000351,30]
[426804823,1782841849000,-935.0,0.00027278,2]
[426804824,1782841849000,-935.0,0.00030278,2]
[426804825,1782841849000,-2666.21337456,0.00030903,10]
[426804828,1782841849000,-300.0,0.00033396,2]
[426804827,1782841849000,-300.0,0.00033396,2]
[426804826,1782841849000,-935.0,0.00033278,2]
[426804830,1782841849000,-300.0,0.00033396,2]
[426804829,1782841849000,-300.0,0.00033396,2]
[426804822,1782841849000,-935.0,0.00024278,2]
[426804833,1782841849000,-200.0,0.00034139,2]
[426804831,1782841849000,-300.0,0.00033396,2]
[426804836,1782841849000,-1492.91118854,0.00034973,5]
[426804834,1782841849000,-200.0,0.00034139,2]
[426804832,1782841849000,-300.0,0.00033396,2]
[426804838,1782841849000,-19.71156824,0.000351,30]
[426804835,1782841849000,-687.0,0.00034927,5]
[426804837,1782841849000,-7606.08881146,0.00034973,5]
[426804840,1782841849000,-1361.39009554,0.000351,30]
[426804844,1782841850000,-781.16923602,0.000351,30]
[426804842,1782841850000,-1121.39266925,0.000351,30]
[426804841,1782841850000,-300.0,0.00033396,2]
[426804843,1782841850000,-163.10733076,0.000351,30]
[426804846,1782841863000,600.0,0.00027324,120]
[426804847,1782841863000,600.0,0.00026119,120]
[426804850,1782841863000,600.0,0.00029553,120]
[426804849,1782841863000,600.0,0.00029553,120]
[426804848,1782841863000,600.0,0.00029553,120]
[426804851,1782842004000,-2176.53896224,0.00016338,2]
[426804852,1782842164000,155.0,0.0002856,30]
[426804853,1782842165000,155.0,0.0002956,30]
[426804854,1782842192000,156.0,0.0002856,30]
[426804855,1782842193000,156.0,0.0002956,30]
[426804860,1782842301000,154.0,0.0002856,30]
[426804861,1782842302000,154.0,0.0002956,30]
[426804867,1782842401000,503.0,0.0002856,30]
[426804868,1782842402000,503.0,0.0002956,30]
[426804870,1782842953000,181.46308475,0.0002863,120]
[426804896,1782843032000,-591.04,0.00014412,2]
[426804899,1782843032000,-150.0,0.00014498,2]
[426804898,1782843032000,-469.17,0.00014447,2]
[426804902,1782843032000,-500.0,0.00014499,2]
[426804900,1782843032000,-500.0,0.00014499,2]
[426804901,1782843032000,-279.30832635,0.00014499,2]
[426804906,1782843032000,-500.0,0.00014499,2]
[426804909,1782843032000,-500.0,0.00014499,2]
[426804908,1782843032000,-500.0,0.00014499,2]
[426804903,1782843032000,-500.0,0.00014499,2]
[426804904,1782843032000,-500.0,0.00014499,2]
[426804897,1782843032000,-300.17,0.00014426,2]
[426804911,1782843032000,-500.0,0.00014499,2]
[426804910,1782843032000,-285.70681779,0.00014499,2]
[426804913,1782843032000,-500.0,0.00014499,2]
[426804905,1782843032000,-500.0,0.00014499,2]
[426804912,1782843032000,-500.0,0.00014499,2]
[426804889,1782843032000,-400.0,0.000142,5]
[426804895,1782843032000,-800.0,0.000144,5]
[426804878,1782843032000,-150.0,0.00013488,2]
[426804877,1782843032000,-166.66,0.00013444,2]
[426804879,1782843032000,-533.13,0.00013654,2]
[426804880,1782843032000,-166.66,0.00013727,2]
[426804881,1782843032000,-70.08145006,0.00013736,2]
[426804882,1782843032000,-129.91854994,0.00013736,2]
[426804884,1782843032000,-166.66,0.0001401,2]
[426804885,1782843032000,-168.83,0.00014051,2]
[426804886,1782843032000,-200.0,0.000141,5]
[426804883,1782843032000,-469.17,0.00013759,2]
[426804888,1782843032000,-450.28,0.00014116,2]
[426804890,1782843032000,-300.17,0.00014249,2]
[426804887,1782843032000,-469.17,0.00014103,2]
[426804892,1782843032000,-600.0,0.000143,5]
[426804894,1782843032000,-183.55,0.00014356,2]
[426804891,1782843032000,-166.66,0.00014293,2]
[426804915,1782843032000,-500.0,0.00014499,2]
[426804893,1782843032000,-300.17,0.00014337,2]
[426804916,1782843032000,-500.0,0.00014499,2]
[426804941,1782843032000,-600.0,0.00014788,2]
[426804942,1782843032000,-300.0,0.00014788,2]
[426804943,1782843032000,-300.0,0.00014788,2]
[426804944,1782843032000,-300.0,0.00014788,2]
[426804945,1782843032000,-300.0,0.00014788,2]
[426804946,1782843032000,-300.0,0.00014788,2]
[426804947,1782843032000,-214.43572506,0.00014788,2]
[426804951,1782843032000,-275.18755998,0.000148,2]
[426804948,1782843032000,-200.70774238,0.00014791,2]
[426804952,1782843032000,-197.95661087,0.000148,2]
[426804949,1782843032000,-268.46225762,0.00014791,2]
[426804950,1782843032000,-985.95582915,0.000148,2]
[426804953,1782843032000,-112.60166607,0.000148,5]
[426804956,1782843032000,-95.84372607,0.00014867,2]
[426804954,1782843032000,-87.39833393,0.000148,5]
[426804955,1782843032000,-166.66,0.00014859,2]
[426804914,1782843032000,-500.0,0.00014499,2]
[426804936,1782843032000,-500.0,0.00014788,2]
[426804934,1782843032000,-300.17,0.00014778,2]
[426804907,1782843032000,-500.0,0.00014499,2]
[426804930,1782843032000,-200.0,0.000147,5]
[426804918,1782843032000,-500.0,0.00014499,2]
[426804920,1782843032000,-500.0,0.00014499,2]
[426804921,1782843032000,-500.0,0.00014499,2]
[426804922,1782843032000,-1000.0,0.000145,5]
[426804919,1782843032000,-500.0,0.00014499,2]
[426804923,1782843032000,-300.17,0.00014514,2]
[426804925,1782843032000,-493.78,0.00014584,2]
[426804924,1782843032000,-166.66,0.00014576,2]
[426804917,1782843032000,-500.0,0.00014499,2]
[426804932,1782843032000,-739.46475478,0.00014717,2]
[426804938,1782843032000,-600.0,0.00014788,2]
[426804937,1782843032000,-600.0,0.00014788,2]
[426804928,1782843032000,-300.17,0.0001469,2]
[426804927,1782843032000,-300.17,0.00014602,2]
[426804939,1782843032000,-600.0,0.00014788,2]
[426804940,1782843032000,-600.0,0.00014788,2]
[426804926,1782843032000,-200.0,0.000146,5]
[426804987,1782843038000,-1278.487,0.000149,2]
[426804989,1782843038000,-1206.09935597,0.000149,2]
[426804991,1782843038000,-500.0,0.00014999,2]
[426804992,1782843038000,-500.0,0.00014999,2]
[426804990,1782843038000,-300.17,0.00014955,2]
[426804994,1782843038000,-300.0,0.00014999,2]
[426804996,1782843038000,-11989927.17026259,0.00015,2]
[426804997,1782843038000,-429.8990304,0.00015,2]
[426804995,1782843038000,-12466096.99092524,0.00015,2]
[426804999,1782843038000,-168.0,0.00015,2]
[426805000,1782843038000,-168.0,0.00015,2]
[426805001,1782843038000,-170.2714225,0.00015,2]
[426804998,1782843038000,-168.0,0.00015,2]
[426804988,1782843038000,-2500.0,0.000149,2]
[426804993,1782843038000,-500.0,0.00014999,2]
[426804986,1782843038000,-4989.58922343,0.000149,2]
[426804976,1782843038000,-500.0,0.00014799,2]
[426804982,1782843038000,-714.46824538,0.000149,2]
[426804969,1782843038000,-500.0,0.00014498,2]
[426804968,1782843038000,-5130.1586429,0.00014374,2]
[426804970,1782843038000,-234.32181492,0.00014799,2]
[426804971,1782843038000,-323.20850439,0.00014799,2]
[426804973,1782843038000,-500.0,0.00014799,2]
[426804974,1782843038000,-325.94048199,0.00014799,2]
[426804972,1782843038000,-500.0,0.00014799,2]
[426804975,1782843038000,-477.04520853,0.00014799,2]
[426805002,1782843038000,-300.17,0.00015043,2]
[426804977,1782843038000,-500.0,0.00014799,2]
[426804980,1782843038000,-204.32627393,0.00014867,2]
[426804978,1782843038000,-500.0,0.00014799,2]
[426804979,1782843038000,-346.31126354,0.00014799,2]
[426804981,1782843038000,-1498.62,0.00014899,2]
[426804983,1782843038000,-32092.29498344,0.000149,2]
[426804985,1782843038000,-5800.0,0.000149,2]
[426805004,1782843038000,-500.0,0.00015091,2]
[426804984,1782843038000,-200.0,0.000149,5]
[426805006,1782843038000,-300.17,0.00015131,2]
[426805048,1782843038000,-631.0,0.00018166,2]
[426805050,1782843038000,-568.63999784,0.00018902,2]
[426805052,1782843038000,-917.05851709,0.00019,2]
[426805055,1782843038000,-578498.13971736,0.00019,2]
[426805057,1782843038000,-281.06313223,0.0001911,3]
[426805065,1782843038000,-302.46,0.00019274,2]
[426805063,1782843038000,-213.0,0.00019274,2]
[426805061,1782843038000,-150.0,0.00019274,2]
[426805059,1782843038000,-201.0,0.00019268,3]
[426805068,1782843038000,-153.72648767,0.00019274,2]
[426805072,1782843038000,-156.0,0.0002,2]
[426805073,1782843038000,-510.1943185,0.0002,10]
[426805078,1782843038000,-154.0,0.0002,2]
[426805076,1782843038000,-901.16687839,0.0002,2]
[426805003,1782843038000,-500.0,0.00015062,2]
[426805046,1782843038000,-45235.8109721,0.00018,2]
[426805035,1782843038000,-171.64,0.00016712,2]
[426805070,1782843038000,-2000.0,0.0002,7]
[426805033,1782843038000,-1000.0,0.000165,2]
[426805008,1782843038000,-469.17,0.00015135,2]
[426805031,1782843038000,-168.83,0.00016371,2]
[426805014,1782843038000,-300.17,0.00015308,2]
[426805012,1782843038000,-300.17,0.0001522,2]
[426805016,1782843038000,-311.02716496,0.00015336,2]
[426805018,1782843038000,-300.17,0.00015396,2]
[426805010,1782843038000,-168.83,0.00015211,2]
[426805023,1782843038000,-255.0,0.00015629,2]
[426805020,1782843038000,-300.17,0.00015484,2]
[426805040,1782843038000,-1244.77633916,0.0001789,2]
[426805037,1782843038000,-433.0,0.00016847,2]
[426805039,1782843038000,-450.0,0.0001702,2]
[426805044,1782843038000,-183.55,0.00017945,2]
[426805042,1782843038000,-500.0,0.00017897,2]
[426805026,1782843038000,-2281.34821548,0.00015807,2]
[426805024,1782843038000,-450.0,0.0001565,2]
[426805029,1782843038000,-200.0,0.0001634,2]
[426805128,1782843039000,-151.0,0.00021222,2]
[426805139,1782843039000,-151.0,0.00021222,2]
[426805142,1782843039000,-151.0,0.00021222,2]
[426805141,1782843039000,-151.0,0.00021222,2]
[426805140,1782843039000,-151.0,0.00021222,2]
[426805133,1782843039000,-151.0,0.00021222,2]
[426805137,1782843039000,-151.0,0.00021222,2]
[426805134,1782843039000,-151.0,0.00021222,2]
[426805135,1782843039000,-151.0,0.00021222,2]
[426805143,1782843039000,-5488.5567696,0.000213,2]
[426805132,1782843039000,-151.0,0.00021222,2]
[426805136,1782843039000,-151.0,0.00021222,2]
[426805138,1782843039000,-151.0,0.00021222,2]
[426805153,1782843039000,-169.0,0.00022,2]
[426805148,1782843039000,-5488.5567696,0.000217,2]
[426805146,1782843039000,-183.55,0.00021534,2]
[426805147,1782843039000,-176.73593335,0.000216,2]
[426805145,1782843039000,-5488.5567696,0.000215,2]
[426805152,1782843039000,-5000.0,0.00021918,2]
[426805151,1782843039000,-176.73593335,0.000219,2]
[426805149,1782843039000,-216.62538722,0.00021704,2]
[426805154,1782843039000,-154.0,0.00022,2]
[426805150,1782843039000,-5488.5567696,0.000219,2]
[426805155,1782843039000,-503.0,0.00022,2]
[426805127,1782843039000,-151.0,0.00021222,2]
[426805156,1782843039000,-5488.5567696,0.000221,2]
[426805144,1782843039000,-176.73593335,0.000214,2]
[426805130,1782843039000,-151.0,0.00021222,2]
[426805105,1782843039000,-325.76,0.00020951,2]
[426805131,1782843039000,-151.0,0.00021222,2]
[426805158,1782843039000,-1089.97,0.00022466,2]
[426805084,1782843039000,-913.4,0.00020145,2]
[426805085,1782843039000,-4946.35,0.00020145,2]
[426805087,1782843039000,-1159.05,0.00020145,2]
[426805090,1782843039000,-591.04,0.00020176,2]
[426805091,1782843039000,-5488.5567696,0.000202,2]
[426805080,1782843039000,-503.0,0.0002,2]
[426805082,1782843039000,-822.0,0.0002,2]
[426805093,1782843039000,-5488.5567696,0.000204,2]
[426805095,1782843039000,-161.990108,0.00020532,2]
[426805099,1782843039000,-500.0,0.00020703,2]
[426805107,1782843039000,-5812.39,0.00020951,2]
[426805129,1782843039000,-151.0,0.00021222,2]
[426805103,1782843039000,-4999.99,0.00020951,2]
[426805113,1782843039000,-3107.86,0.00020951,2]
[426805111,1782843039000,-150.99,0.00020951,2]
[426805115,1782843039000,-9999.99,0.00020951,2]
[426805117,1782843039000,-156.0,0.00021,2]
[426805109,1782843039000,-4145.06,0.00020951,2]
[426805118,1782843039000,-176.73593335,0.00021,2]
[426805120,1782843039000,-154.0,0.00021,2]
[426805122,1782843039000,-503.0,0.00021,2]
[426805123,1782843039000,-5488.5567696,0.000211,2]
[426805126,1782843039000,-151.0,0.00021222,2]
[426805125,1782843039000,-151.0,0.00021222,2]
[426805124,1782843039000,-176.73593335,0.000212,2]
[426805098,1782843039000,-5488.5567696,0.000207,2]
[426805159,1782843039000,-1959.33,0.00022466,2]
[426805101,1782843039000,-5488.5567696,0.000209,2]
[426805157,1782843039000,-162.48,0.00022398,2]
[426805192,1782843039000,-203.51876525,0.00023516,2]
[426805202,1782843039000,-154.0,0.00024,2]
[426805201,1782843039000,-150.0,0.00023661,2]
[426805193,1782843039000,-181.17808073,0.00023516,2]
[426805196,1782843039000,-156.89788617,0.00023516,2]
[426805197,1782843039000,-176.00740732,0.0002363,2]
[426805194,1782843039000,-170.22124283,0.00023516,2]
[426805198,1782843039000,-187.7019765,0.0002363,2]
[426805195,1782843039000,-162.38629236,0.00023516,2]
[426805200,1782843039000,-164.85883288,0.0002363,2]
[426805199,1782843039000,-198.3865749,0.0002363,2]
[426805217,1782843039000,-160.0,0.00024331,2]
[426805191,1782843039000,-179.62191143,0.00023516,2]
[426805203,1782843039000,-503.0,0.00024,2]
[426805205,1782843039000,-313.75,0.0002411,2]
[426805210,1782843039000,-1278.0,0.00024327,2]
[426805211,1782843039000,-283.0,0.00024327,2]
[426805213,1782843039000,-1231.0,0.00024327,2]
[426805209,1782843039000,-23799.99,0.00024174,2]
[426805206,1782843039000,-3509.61,0.00024174,2]
[426805214,1782843039000,-6088.0,0.00024327,2]
[426805208,1782843039000,-1146.63,0.00024174,2]
[426805212,1782843039000,-1362.0,0.00024327,2]
[426805207,1782843039000,-718.94,0.00024174,2]
[426805215,1782843039000,-1217.0,0.00024327,2]
[426805216,1782843039000,-3669.929,0.00024327,2]
[426805204,1782843039000,-953.73,0.0002411,2]
[426805189,1782843039000,-180.0927452,0.00023516,2]
[426805160,1782843039000,-358.57,0.00022466,2]
[426805188,1782843039000,-154.83126161,0.00023516,2]
[426805161,1782843039000,-24405.88,0.00022562,2]
[426805163,1782843039000,-5368.46,0.00022562,2]
[426805165,1782843039000,-154.0,0.00023,2]
[426805164,1782843039000,-1129.0,0.00022964,2]
[426805166,1782843039000,-503.0,0.00023,2]
[426805167,1782843039000,-282.70312053,0.00023416,7]